[Event "Titled Tuesday Blitz June 13 Early 2023"]
[White "Mendez Fortes, Eduardo Jesus"]
[Black "carokannlover213"]
[WhiteFideId "3502376"]
[WhiteElo "2307"]
[BlackElo "2753"]
[Result "1-0"]
[Round "5"]
[TimeControl "180+2"]
[Date "2023.06.13"]
[WhiteClock "0:00:09"]
[BlackClock "0:00:01"]
[Board "64"]

1. e4 {[%clk 0:03:00]}  c5 {[%clk 0:02:51]} 2. Nf3 {[%clk 0:03:00]}  d6 {[%clk 0:02:52]} 3. d4 {[%clk 0:03:01]}  cxd4 {[%clk 0:02:53]} 4. Nxd4 {[%clk 0:03:01]}  Nf6 {[%clk 0:02:53]} 5. Nc3 {[%clk 0:03:02]}  a6 {[%clk 0:02:54]} 6. Bg5 {[%clk 0:03:02]}  e6 {[%clk 0:02:54]} 7. f4 {[%clk 0:03:02]}  h6 {[%clk 0:02:52]} 8. Bh4 {[%clk 0:03:02]}  Qb6 {[%clk 0:02:52]} 9. a3 {[%clk 0:03:03]}  Be7 {[%clk 0:02:43]} 10. Bf2 {[%clk 0:03:01]}  Qc7 {[%clk 0:02:44]} 11. Qf3 {[%clk 0:03:01]}  Nbd7 {[%clk 0:02:43]} 12. O-O-O {[%clk 0:02:58]}  b5 {[%clk 0:02:43]} 13. g4 {[%clk 0:02:55]}  Bb7 {[%clk 0:02:42]} 14. Bg2 {[%clk 0:02:54]}  g5 {[%clk 0:02:42]} 15. h4 {[%clk 0:02:54]}  gxf4 {[%clk 0:02:39]} 16. g5 {[%clk 0:02:54]}  Ne5 {[%clk 0:02:39]} 17. Qxf4 {[%clk 0:02:54]}  hxg5 {[%clk 0:02:31]} 18. hxg5 {[%clk 0:02:55]}  Rxh1 {[%clk 0:02:31]} 19. Rxh1 {[%clk 0:02:54]}  Nfd7 {[%clk 0:02:32]} 20. Kb1 {[%clk 0:02:44]}  O-O-O {[%clk 0:02:26]} 21. Be3 {[%clk 0:02:44]}  Rg8 {[%clk 0:02:21]} 22. Bf1 {[%clk 0:02:43]}  Qd8 {[%clk 0:02:02]} 23. Rg1 {[%clk 0:02:30]}  Rg7 {[%clk 0:01:56]} 24. Be2 {[%clk 0:02:25]}  Qg8 {[%clk 0:01:52]} 25. a4 {[%clk 0:02:03]}  bxa4 {[%clk 0:01:30]} 26. Nxa4 {[%clk 0:02:03]}  f6 {[%clk 0:01:20]} 27. Qf1 {[%clk 0:01:56]}  Nb8 {[%clk 0:00:39]} 28. gxf6 {[%clk 0:01:41]}  Rxg1 {[%clk 0:00:38]} 29. Bxg1 {[%clk 0:01:41]}  Bxf6 {[%clk 0:00:39]} 30. Bh2 {[%clk 0:01:35]}  Bh8 {[%clk 0:00:34]} 31. Qh3 {[%clk 0:01:29]}  Kd7 {[%clk 0:00:25]} 32. Bxe5 {[%clk 0:00:35]}  Bxe5 {[%clk 0:00:26]} 33. Nxe6 {[%clk 0:00:35]}  Qg1+ {[%clk 0:00:18]} 34. Ka2 {[%clk 0:00:35]}  Kc6 {[%clk 0:00:06]} 35. Bc4 {[%clk 0:00:30]}  Qg3 {[%clk 0:00:02]} 36. Qh7 {[%clk 0:00:17]}  Nd7 {[%clk 0:00:02]} 37. Bd5+ {[%clk 0:00:17]}  Kb5 {[%clk 0:00:03]} 38. Qxd7+ {[%clk 0:00:16]}  Ka5 {[%clk 0:00:03]} 39. Qxb7 {[%clk 0:00:13]}  Kxa4 {[%clk 0:00:02]} 40. b3+ {[%clk 0:00:11]}  Ka5 {[%clk 0:00:02]} 41. Qc7+ {[%clk 0:00:11]}  Kb4 {[%clk 0:00:01]} 42. Qb6+ {[%clk 0:00:11]}  Kc3 {[%clk 0:00:02]} 43. Qc6+ {[%clk 0:00:11]}  Kd2 {[%clk 0:00:03]} 44. Qc4 {[%clk 0:00:08]}  Qg1 {[%clk 0:00:03]} 45. Qd3+ {[%clk 0:00:08]}  Kc1 {[%clk 0:00:03]} 46. c3 {[%clk 0:00:07]}  Qf2+ {[%clk 0:00:03]} 47. Ka3 {[%clk 0:00:07]}  a5 {[%clk 0:00:02]} 48. Ka4 {[%clk 0:00:06]}  Qa2+ {[%clk 0:00:02]} 49. Kb5 {[%clk 0:00:07]}  Qb2 {[%clk 0:00:02]} 50. Nd4 {[%clk 0:00:07]}  a4 {[%clk 0:00:01]} 51. Ne2+ {[%clk 0:00:07]}  Qxe2 {[%clk 0:00:01]} 52. Qxe2 {[%clk 0:00:08]}  a3 {[%clk 0:00:02]} 53. b4 {[%clk 0:00:08]}  Bxc3 {[%clk 0:00:02]} 54. Bb3 {[%clk 0:00:09]}  Bb2 {[%clk 0:00:01]} 55. Qc2# {[%clk 0:00:09]} 1-0


[Site "https://www.chess.com"]

[Event "Titled Tuesday Blitz June 13 Early 2023"]
[White "Shuvalova, Polina"]
[Black "Omelja, Artem"]
[WhiteFideId "24171760"]
[BlackFideId "14119846"]
[WhiteElo "2281"]
[BlackElo "2404"]
[Result "1-0"]
[Round "5"]
[TimeControl "180+2"]
[Date "2023.06.13"]
[WhiteClock "0:00:09"]
[BlackClock "0:00:00"]
[Board "65"]

1. e4 {[%clk 0:03:00]}  e5 {[%clk 0:02:53]} 2. Nf3 {[%clk 0:03:00]}  Nc6 {[%clk 0:02:53]} 3. Nc3 {[%clk 0:02:59]}  Nf6 {[%clk 0:02:51]} 4. Bb5 {[%clk 0:02:59]}  Bb4 {[%clk 0:02:18]} 5. O-O {[%clk 0:02:59]}  O-O {[%clk 0:02:15]} 6. d3 {[%clk 0:02:59]}  d6 {[%clk 0:02:14]} 7. Ne2 {[%clk 0:02:59]}  a6 {[%clk 0:02:10]} 8. Bxc6 {[%clk 0:02:54]}  bxc6 {[%clk 0:02:11]} 9. Ng3 {[%clk 0:02:54]}  Bc5 {[%clk 0:01:57]} 10. Be3 {[%clk 0:02:48]}  Bb6 {[%clk 0:01:53]} 11. a4 {[%clk 0:02:44]}  Rb8 {[%clk 0:01:46]} 12. b3 {[%clk 0:02:42]}  Ng4 {[%clk 0:01:43]} 13. Bxb6 {[%clk 0:02:40]}  cxb6 {[%clk 0:01:44]} 14. h3 {[%clk 0:02:40]}  Nh6 {[%clk 0:01:41]} 15. d4 {[%clk 0:02:40]}  Qe7 {[%clk 0:01:37]} 16. Re1 {[%clk 0:02:30]}  Bb7 {[%clk 0:01:07]} 17. Qd2 {[%clk 0:02:29]}  c5 {[%clk 0:01:06]} 18. dxe5 {[%clk 0:02:23]}  dxe5 {[%clk 0:01:06]} 19. Qc3 {[%clk 0:02:21]}  f6 {[%clk 0:01:03]} 20. a5 {[%clk 0:02:19]}  b5 {[%clk 0:01:03]} 21. Rad1 {[%clk 0:02:17]}  Rbd8 {[%clk 0:01:00]} 22. Nh2 {[%clk 0:02:07]}  g6 {[%clk 0:00:50]} 23. Qe3 {[%clk 0:02:05]}  Kg7 {[%clk 0:00:48]} 24. Ng4 {[%clk 0:01:54]}  Nxg4 {[%clk 0:00:48]} 25. hxg4 {[%clk 0:01:54]}  h6 {[%clk 0:00:34]} 26. f3 {[%clk 0:01:51]}  Bc8 {[%clk 0:00:32]} 27. Rd5 {[%clk 0:01:48]}  Rxd5 {[%clk 0:00:29]} 28. exd5 {[%clk 0:01:49]}  Rd8 {[%clk 0:00:29]} 29. c4 {[%clk 0:01:47]}  bxc4 {[%clk 0:00:27]} 30. bxc4 {[%clk 0:01:48]}  Qc7 {[%clk 0:00:27]} 31. Ra1 {[%clk 0:01:41]}  f5 {[%clk 0:00:24]} 32. gxf5 {[%clk 0:01:39]}  Bxf5 {[%clk 0:00:24]} 33. Re1 {[%clk 0:01:29]}  Re8 {[%clk 0:00:24]} 34. Qc3 {[%clk 0:01:22]}  h5 {[%clk 0:00:22]} 35. f4 {[%clk 0:01:20]}  Kf6 {[%clk 0:00:20]} 36. Ne4+ {[%clk 0:01:05]}  Bxe4 {[%clk 0:00:20]} 37. Rxe4 {[%clk 0:01:06]}  Qb8 {[%clk 0:00:21]} 38. fxe5+ {[%clk 0:00:57]}  Rxe5 {[%clk 0:00:21]} 39. Qf3+ {[%clk 0:00:25]}  Rf5 {[%clk 0:00:21]} 40. Re6+ {[%clk 0:00:24]}  Kf7 {[%clk 0:00:20]} 41. Qe4 {[%clk 0:00:19]}  Qd8 {[%clk 0:00:12]} 42. d6 {[%clk 0:00:18]}  Kf8 {[%clk 0:00:04]} 43. Rxg6 {[%clk 0:00:16]}  Qd7 {[%clk 0:00:03]} 44. Re6 {[%clk 0:00:14]}  Qf7 {[%clk 0:00:03]} 45. Kh2 {[%clk 0:00:12]}  Rf4 {[%clk 0:00:03]} 46. Qe5 {[%clk 0:00:10]}  Qf5 {[%clk 0:00:01]} 47. Re8+ {[%clk 0:00:08]}  Kf7 {[%clk 0:00:02]} 48. Qxf5+ {[%clk 0:00:09]}  Rxf5 {[%clk 0:00:00]} 49. d7 {[%clk 0:00:09]} 1-0


[Site "https://www.chess.com"]

[Event "Titled Tuesday Blitz June 13 Early 2023"]
[White "Malyi, Viacheslav"]
[Black "Vaibhav, Suri"]
[WhiteFideId "14123983"]
[BlackFideId "5045185"]
[WhiteElo "2291"]
[BlackElo "2494"]
[Result "0-1"]
[Round "5"]
[TimeControl "180+2"]
[Date "2023.06.13"]
[WhiteClock "0:00:15"]
[BlackClock "0:01:19"]
[Board "67"]

1. e4 {[%clk 0:03:00]}  c6 {[%clk 0:02:57]} 2. d4 {[%clk 0:02:50]}  d5 {[%clk 0:02:57]} 3. Nc3 {[%clk 0:02:50]}  dxe4 {[%clk 0:02:56]} 4. Nxe4 {[%clk 0:02:51]}  Nf6 {[%clk 0:02:57]} 5. Nxf6+ {[%clk 0:02:52]}  exf6 {[%clk 0:02:58]} 6. Nf3 {[%clk 0:02:52]}  Bd6 {[%clk 0:02:59]} 7. Bd3 {[%clk 0:02:53]}  O-O {[%clk 0:02:59]} 8. O-O {[%clk 0:02:53]}  Na6 {[%clk 0:02:59]} 9. c3 {[%clk 0:02:48]}  Nc7 {[%clk 0:02:58]} 10. Qc2 {[%clk 0:02:46]}  g6 {[%clk 0:02:58]} 11. h3 {[%clk 0:02:45]}  Be6 {[%clk 0:02:50]} 12. Bd2 {[%clk 0:02:37]}  Qd7 {[%clk 0:02:49]} 13. Nh2 {[%clk 0:02:19]}  Rfe8 {[%clk 0:02:48]} 14. Rae1 {[%clk 0:02:17]}  b5 {[%clk 0:02:45]} 15. Bc1 {[%clk 0:02:13]}  Nd5 {[%clk 0:02:43]} 16. b3 {[%clk 0:02:05]}  Bxh3 {[%clk 0:02:06]} 17. gxh3 {[%clk 0:02:06]}  Qxh3 {[%clk 0:02:06]} 18. Rxe8+ {[%clk 0:01:58]}  Rxe8 {[%clk 0:02:05]} 19. f4 {[%clk 0:01:59]}  Bxf4 {[%clk 0:01:50]} 20. Bxf4 {[%clk 0:01:41]}  Nxf4 {[%clk 0:01:50]} 21. Be4 {[%clk 0:01:42]}  f5 {[%clk 0:01:23]} 22. Bg2 {[%clk 0:01:20]}  Qe3+ {[%clk 0:01:21]} 23. Kh1 {[%clk 0:01:04]}  Ne2 {[%clk 0:01:20]} 24. Rf3 {[%clk 0:00:15]}  Qg1# {[%clk 0:01:19]} 0-1


[Site "https://www.chess.com"]

[Event "Titled Tuesday Blitz June 13 Early 2023"]
[White "Fieberg, Samuel"]
[Black "Karthik Rajaa"]
[WhiteFideId "12901717"]
[BlackFideId "25035215"]
[WhiteElo "2553"]
[BlackElo "2215"]
[Result "1-0"]
[Round "5"]
[TimeControl "180+2"]
[Date "2023.06.13"]
[WhiteClock "0:00:15"]
[BlackClock "0:00:00"]
[Board "69"]

1. e4 {[%clk 0:03:00]}  c6 {[%clk 0:02:59]} 2. Nf3 {[%clk 0:03:00]}  d5 {[%clk 0:03:00]} 3. exd5 {[%clk 0:03:01]}  cxd5 {[%clk 0:03:00]} 4. d4 {[%clk 0:03:01]}  Nf6 {[%clk 0:03:00]} 5. Ne5 {[%clk 0:03:02]}  Nfd7 {[%clk 0:02:38]} 6. Bd3 {[%clk 0:02:43]}  Nxe5 {[%clk 0:02:37]} 7. dxe5 {[%clk 0:02:44]}  Nc6 {[%clk 0:02:37]} 8. Bf4 {[%clk 0:02:39]}  Qb6 {[%clk 0:02:33]} 9. Nc3 {[%clk 0:02:27]}  e6 {[%clk 0:02:27]} 10. O-O {[%clk 0:02:24]}  a6 {[%clk 0:02:14]} 11. Rb1 {[%clk 0:02:16]}  g6 {[%clk 0:02:12]} 12. h4 {[%clk 0:02:08]}  Bg7 {[%clk 0:02:11]} 13. Re1 {[%clk 0:02:00]}  O-O {[%clk 0:01:51]} 14. h5 {[%clk 0:02:00]}  Qd4 {[%clk 0:01:51]} 15. Ne2 {[%clk 0:01:56]}  Qa4 {[%clk 0:01:34]} 16. b3 {[%clk 0:01:52]}  Qa5 {[%clk 0:01:30]} 17. Ng3 {[%clk 0:01:48]}  Nb4 {[%clk 0:01:29]} 18. Bg5 {[%clk 0:01:36]}  Qc7 {[%clk 0:01:22]} 19. Bf6 {[%clk 0:01:20]}  Bxf6 {[%clk 0:01:14]} 20. exf6 {[%clk 0:01:20]}  Qf4 {[%clk 0:01:15]} 21. Qf3 {[%clk 0:00:39]}  Qxf3 {[%clk 0:01:13]} 22. gxf3 {[%clk 0:00:40]}  Bd7 {[%clk 0:01:00]} 23. a3 {[%clk 0:00:38]}  Nxd3 {[%clk 0:00:58]} 24. cxd3 {[%clk 0:00:39]}  Rfc8 {[%clk 0:00:54]} 25. Rbc1 {[%clk 0:00:34]}  a5 {[%clk 0:00:45]} 26. f4 {[%clk 0:00:26]}  Kf8 {[%clk 0:00:31]} 27. h6 {[%clk 0:00:24]}  Bb5 {[%clk 0:00:27]} 28. d4 {[%clk 0:00:24]}  Bd3 {[%clk 0:00:25]} 29. f3 {[%clk 0:00:20]}  Bc2 {[%clk 0:00:22]} 30. Re3 {[%clk 0:00:20]}  a4 {[%clk 0:00:15]} 31. b4 {[%clk 0:00:20]}  Bb3 {[%clk 0:00:14]} 32. Rec3 {[%clk 0:00:20]}  Rc4 {[%clk 0:00:12]} 33. Ne2 {[%clk 0:00:18]}  Rac8 {[%clk 0:00:11]} 34. Kf2 {[%clk 0:00:18]}  Ke8 {[%clk 0:00:11]} 35. Ke3 {[%clk 0:00:18]}  Kd7 {[%clk 0:00:11]} 36. Kd2 {[%clk 0:00:19]}  Kc6 {[%clk 0:00:11]} 37. Kd3 {[%clk 0:00:17]}  Kb5 {[%clk 0:00:11]} 38. Ng1 {[%clk 0:00:14]}  Rxc3+ {[%clk 0:00:04]} 39. Rxc3 {[%clk 0:00:15]}  Rxc3+ {[%clk 0:00:04]} 40. Kxc3 {[%clk 0:00:16]}  Bd1 {[%clk 0:00:00]} 41. Nh3 {[%clk 0:00:15]} 1-0


[Site "https://www.chess.com"]

[Event "Titled Tuesday Blitz June 13 Early 2023"]
[White "Liyanage, Ranindu Dilshan"]
[Black "Mamedov, Edgar"]
[WhiteFideId "9915834"]
[BlackFideId "13739980"]
[WhiteElo "2216"]
[BlackElo "2317"]
[Result "1-0"]
[Round "5"]
[TimeControl "180+2"]
[Date "2023.06.13"]
[WhiteClock "0:00:05"]
[BlackClock "0:00:07"]
[Board "71"]

1. d4 {[%clk 0:02:58]}  d5 {[%clk 0:02:59]} 2. c4 {[%clk 0:02:58]}  e6 {[%clk 0:02:58]} 3. Nf3 {[%clk 0:02:59]}  Nf6 {[%clk 0:02:58]} 4. g3 {[%clk 0:02:59]}  Bb4+ {[%clk 0:02:57]} 5. Bd2 {[%clk 0:02:59]}  Be7 {[%clk 0:02:57]} 6. Bg2 {[%clk 0:02:58]}  O-O {[%clk 0:02:57]} 7. Qc2 {[%clk 0:02:57]}  c6 {[%clk 0:02:57]} 8. O-O {[%clk 0:02:57]}  Nbd7 {[%clk 0:02:57]} 9. Rc1 {[%clk 0:02:46]}  a5 {[%clk 0:02:51]} 10. Nc3 {[%clk 0:02:40]}  dxc4 {[%clk 0:02:49]} 11. a4 {[%clk 0:02:38]}  Nd5 {[%clk 0:02:38]} 12. e4 {[%clk 0:02:21]}  Nb4 {[%clk 0:02:36]} 13. Qb1 {[%clk 0:02:18]}  e5 {[%clk 0:02:35]} 14. Be3 {[%clk 0:02:15]}  exd4 {[%clk 0:02:32]} 15. Bxd4 {[%clk 0:02:11]}  Bc5 {[%clk 0:02:26]} 16. Rd1 {[%clk 0:02:11]}  Qe7 {[%clk 0:02:22]} 17. Bf1 {[%clk 0:02:01]}  Bxd4 {[%clk 0:02:16]} 18. Nxd4 {[%clk 0:01:47]}  Ne5 {[%clk 0:02:13]} 19. b3 {[%clk 0:01:38]}  Bg4 {[%clk 0:02:07]} 20. Be2 {[%clk 0:01:36]}  Bxe2 {[%clk 0:02:05]} 21. Ncxe2 {[%clk 0:01:37]}  Rad8 {[%clk 0:02:00]} 22. bxc4 {[%clk 0:01:32]}  Nxc4 {[%clk 0:01:58]} 23. Qb3 {[%clk 0:01:30]}  Ne5 {[%clk 0:01:54]} 24. Nf5 {[%clk 0:01:30]}  Qe6 {[%clk 0:01:51]} 25. Qc3 {[%clk 0:01:27]}  f6 {[%clk 0:01:44]} 26. Nf4 {[%clk 0:01:02]}  Qf7 {[%clk 0:01:39]} 27. Nd6 {[%clk 0:00:49]}  Qe7 {[%clk 0:01:38]} 28. Qb3+ {[%clk 0:00:46]}  Kh8 {[%clk 0:01:36]} 29. Nf5 {[%clk 0:00:46]}  Qf7 {[%clk 0:01:28]} 30. Qxf7 {[%clk 0:00:44]}  Nxf7 {[%clk 0:01:22]} 31. Ne6 {[%clk 0:00:44]}  Rxd1+ {[%clk 0:01:21]} 32. Rxd1 {[%clk 0:00:45]}  Re8 {[%clk 0:01:11]} 33. Nfxg7 {[%clk 0:00:44]}  Re7 {[%clk 0:01:10]} 34. f4 {[%clk 0:00:38]}  b5 {[%clk 0:00:55]} 35. e5 {[%clk 0:00:37]}  f5 {[%clk 0:00:49]} 36. axb5 {[%clk 0:00:32]}  cxb5 {[%clk 0:00:48]} 37. Rc1 {[%clk 0:00:32]}  h6 {[%clk 0:00:41]} 38. Rc8+ {[%clk 0:00:22]}  Kh7 {[%clk 0:00:41]} 39. g4 {[%clk 0:00:23]}  a4 {[%clk 0:00:31]} 40. gxf5 {[%clk 0:00:22]}  Nxe5 {[%clk 0:00:22]} 41. fxe5 {[%clk 0:00:13]}  a3 {[%clk 0:00:19]} 42. f6 {[%clk 0:00:09]}  Rf7 {[%clk 0:00:19]} 43. Ra8 {[%clk 0:00:08]}  a2 {[%clk 0:00:19]} 44. Nd8 {[%clk 0:00:06]}  Rd7 {[%clk 0:00:16]} 45. Nge6 {[%clk 0:00:04]}  Rd1+ {[%clk 0:00:12]} 46. Kf2 {[%clk 0:00:05]}  Kg6 {[%clk 0:00:11]} 47. f7 {[%clk 0:00:05]}  Rxd8 {[%clk 0:00:09]} 48. Nxd8 {[%clk 0:00:06]}  Kg7 {[%clk 0:00:07]} 49. e6 {[%clk 0:00:05]} 1-0


[Site "https://www.chess.com"]

[Event "Titled Tuesday Blitz June 13 Early 2023"]
[White "Perera Alfonso, Rene Humberto"]
[Black "Wagner, Dennis"]
[WhiteFideId "3514722"]
[BlackFideId "24650684"]
[WhiteElo "2313"]
[BlackElo "2478"]
[Result "1/2-1/2"]
[Round "5"]
[TimeControl "180+2"]
[Date "2023.06.13"]
[WhiteClock "0:00:42"]
[BlackClock "0:00:02"]
[Board "73"]

1. e4 {[%clk 0:03:00]}  c5 {[%clk 0:03:00]} 2. Nf3 {[%clk 0:02:59]}  Nc6 {[%clk 0:03:00]} 3. d4 {[%clk 0:02:59]}  cxd4 {[%clk 0:03:01]} 4. Nxd4 {[%clk 0:03:00]}  Nf6 {[%clk 0:03:01]} 5. Nc3 {[%clk 0:02:59]}  e5 {[%clk 0:03:02]} 6. Ndb5 {[%clk 0:03:00]}  d6 {[%clk 0:03:02]} 7. Bg5 {[%clk 0:03:00]}  a6 {[%clk 0:03:03]} 8. Na3 {[%clk 0:03:00]}  b5 {[%clk 0:03:03]} 9. Nd5 {[%clk 0:03:00]}  Be7 {[%clk 0:03:04]} 10. Bxf6 {[%clk 0:03:00]}  Bxf6 {[%clk 0:03:05]} 11. c4 {[%clk 0:03:00]}  b4 {[%clk 0:03:04]} 12. Nc2 {[%clk 0:03:00]}  O-O {[%clk 0:03:03]} 13. g3 {[%clk 0:03:00]}  a5 {[%clk 0:02:57]} 14. Bg2 {[%clk 0:02:58]}  Be6 {[%clk 0:02:38]} 15. O-O {[%clk 0:02:55]}  Bg5 {[%clk 0:02:24]} 16. f4 {[%clk 0:02:47]}  exf4 {[%clk 0:02:23]} 17. gxf4 {[%clk 0:02:46]}  Bh6 {[%clk 0:02:23]} 18. Nce3 {[%clk 0:02:41]}  Rc8 {[%clk 0:02:19]} 19. b3 {[%clk 0:02:41]}  Kh8 {[%clk 0:02:14]} 20. Nf5 {[%clk 0:02:35]}  Bxf5 {[%clk 0:02:06]} 21. exf5 {[%clk 0:02:36]}  Ne7 {[%clk 0:01:49]} 22. Qh5 {[%clk 0:02:31]}  Nxd5 {[%clk 0:01:42]} 23. Bxd5 {[%clk 0:02:29]}  Qf6 {[%clk 0:01:40]} 24. Rae1 {[%clk 0:02:28]}  Rc7 {[%clk 0:00:59]} 25. Re4 {[%clk 0:02:27]}  Re7 {[%clk 0:00:57]} 26. Rfe1 {[%clk 0:02:01]}  Rxe4 {[%clk 0:00:55]} 27. Rxe4 {[%clk 0:01:57]}  Qa1+ {[%clk 0:00:55]} 28. Kg2 {[%clk 0:01:54]}  Qb2+ {[%clk 0:00:02]} 29. Kf3 {[%clk 0:01:45]}  Qf6 {[%clk 0:00:03]} 30. h3 {[%clk 0:01:08]}  Kg8 {[%clk 0:00:03]} 31. Kg4 {[%clk 0:01:02]}  Kh8 {[%clk 0:00:03]} 32. Kf3 {[%clk 0:01:02]}  Kg8 {[%clk 0:00:03]} 33. Re3 {[%clk 0:00:56]}  Kh8 {[%clk 0:00:01]} 34. Kg2 {[%clk 0:00:44]}  Kg8 {[%clk 0:00:01]} 35. Kf3 {[%clk 0:00:43]}  Kh8 {[%clk 0:00:02]} 36. Re4 {[%clk 0:00:42]} 1/2-1/2


[Site "https://www.chess.com"]

[Event "Titled Tuesday Blitz June 13 Early 2023"]
[White "Ovetchkin, Roman"]
[Black "Kielinkei"]
[WhiteFideId "4119991"]
[WhiteElo "2398"]
[BlackElo "2481"]
[Result "0-1"]
[Round "5"]
[TimeControl "180+2"]
[Date "2023.06.13"]
[WhiteClock "0:00:00"]
[BlackClock "0:00:04"]
[Board "77"]

1. d4 {[%clk 0:03:00]}  Nf6 {[%clk 0:02:59]} 2. c4 {[%clk 0:02:59]}  e6 {[%clk 0:02:59]} 3. g3 {[%clk 0:02:58]}  c5 {[%clk 0:02:58]} 4. d5 {[%clk 0:02:57]}  exd5 {[%clk 0:02:59]} 5. cxd5 {[%clk 0:02:58]}  b5 {[%clk 0:03:00]} 6. e4 {[%clk 0:02:53]}  Nxe4 {[%clk 0:03:00]} 7. Qe2 {[%clk 0:02:52]}  Qe7 {[%clk 0:02:57]} 8. Bg2 {[%clk 0:02:51]}  Nd6 {[%clk 0:02:54]} 9. Be3 {[%clk 0:02:46]}  Na6 {[%clk 0:02:37]} 10. Nc3 {[%clk 0:02:46]}  Rb8 {[%clk 0:02:31]} 11. Nh3 {[%clk 0:02:07]}  Nc4 {[%clk 0:01:51]} 12. Nxb5 {[%clk 0:01:17]}  Nxe3 {[%clk 0:01:47]} 13. fxe3 {[%clk 0:01:16]}  d6 {[%clk 0:01:19]} 14. O-O {[%clk 0:01:08]}  g6 {[%clk 0:01:20]} 15. Nf2 {[%clk 0:00:56]}  Bg7 {[%clk 0:01:14]} 16. Ne4 {[%clk 0:00:56]}  Be5 {[%clk 0:01:09]} 17. Rf2 {[%clk 0:00:46]}  O-O {[%clk 0:01:06]} 18. Raf1 {[%clk 0:00:43]}  f6 {[%clk 0:00:57]} 19. b3 {[%clk 0:00:31]}  Bd7 {[%clk 0:00:45]} 20. Nxa7 {[%clk 0:00:21]}  Nb4 {[%clk 0:00:40]} 21. Nc6 {[%clk 0:00:18]}  Bxc6 {[%clk 0:00:25]} 22. dxc6 {[%clk 0:00:19]}  f5 {[%clk 0:00:25]} 23. Nd2 {[%clk 0:00:17]}  Rbc8 {[%clk 0:00:23]} 24. Nc4 {[%clk 0:00:15]}  Nxc6 {[%clk 0:00:22]} 25. Rd1 {[%clk 0:00:13]}  Kg7 {[%clk 0:00:20]} 26. Qd2 {[%clk 0:00:11]}  Rfd8 {[%clk 0:00:18]} 27. Bxc6 {[%clk 0:00:05]}  Rxc6 {[%clk 0:00:18]} 28. Qd5 {[%clk 0:00:05]}  Rcc8 {[%clk 0:00:17]} 29. Rfd2 {[%clk 0:00:05]}  Qc7 {[%clk 0:00:09]} 30. Nxe5 {[%clk 0:00:03]}  dxe5 {[%clk 0:00:08]} 31. Qxd8 {[%clk 0:00:04]}  Rxd8 {[%clk 0:00:08]} 32. Rxd8 {[%clk 0:00:04]}  Kh6 {[%clk 0:00:05]} 33. Kf2 {[%clk 0:00:04]}  Qa5 {[%clk 0:00:05]} 34. R8d2 {[%clk 0:00:03]}  Kg5 {[%clk 0:00:02]} 35. Rc2 {[%clk 0:00:04]}  h5 {[%clk 0:00:02]} 36. Rd5 {[%clk 0:00:03]}  e4 {[%clk 0:00:02]} 37. Rdxc5 {[%clk 0:00:03]}  Qa3 {[%clk 0:00:02]} 38. Rc6 {[%clk 0:00:02]}  Qb4 {[%clk 0:00:02]} 39. Kg2 {[%clk 0:00:02]}  Qb5 {[%clk 0:00:02]} 40. h4+ {[%clk 0:00:02]}  Kh6 {[%clk 0:00:01]} 41. Rd6 {[%clk 0:00:02]}  Qb4 {[%clk 0:00:02]} 42. Rcc6 {[%clk 0:00:01]}  Qe1 {[%clk 0:00:02]} 43. Rxg6+ {[%clk 0:00:01]}  Kh7 {[%clk 0:00:03]} 44. Rh6+ {[%clk 0:00:00]}  Kg7 {[%clk 0:00:04]} 0-1


[Site "https://www.chess.com"]

[Event "Titled Tuesday Blitz June 13 Early 2023"]
[White "Shubenkova, Veronika"]
[Black "Orlov, Georgi"]
[WhiteFideId "44124040"]
[BlackFideId "2011271"]
[WhiteElo "2060"]
[BlackElo "2643"]
[Result "1-0"]
[Round "5"]
[TimeControl "180+2"]
[Date "2023.06.13"]
[WhiteClock "0:00:08"]
[BlackClock "0:00:00"]
[Board "78"]

1. e4 {[%clk 0:03:00]}  e6 {[%clk 0:02:59]} 2. d4 {[%clk 0:02:59]}  b6 {[%clk 0:02:59]} 3. c4 {[%clk 0:02:59]}  Bb7 {[%clk 0:02:58]} 4. Nc3 {[%clk 0:02:58]}  Bb4 {[%clk 0:02:57]} 5. Qc2 {[%clk 0:02:56]}  f5 {[%clk 0:02:52]} 6. d5 {[%clk 0:02:50]}  fxe4 {[%clk 0:02:50]} 7. Qxe4 {[%clk 0:02:49]}  Nf6 {[%clk 0:02:49]} 8. Qe2 {[%clk 0:02:34]}  O-O {[%clk 0:02:44]} 9. dxe6 {[%clk 0:02:19]}  Re8 {[%clk 0:02:40]} 10. Be3 {[%clk 0:02:19]}  Rxe6 {[%clk 0:02:36]} 11. O-O-O {[%clk 0:01:54]}  Bxc3 {[%clk 0:02:35]} 12. bxc3 {[%clk 0:01:53]}  Qe8 {[%clk 0:02:35]} 13. Qb2 {[%clk 0:01:46]}  Ng4 {[%clk 0:02:25]} 14. Bf4 {[%clk 0:01:43]}  Rf6 {[%clk 0:02:20]} 15. Bg3 {[%clk 0:01:42]}  Na6 {[%clk 0:02:15]} 16. h3 {[%clk 0:01:33]}  h6 {[%clk 0:02:11]} 17. hxg4 {[%clk 0:01:31]}  Qg6 {[%clk 0:02:09]} 18. Bd3 {[%clk 0:01:21]}  Qxg4 {[%clk 0:02:07]} 19. Rh4 {[%clk 0:01:18]}  Qg5+ {[%clk 0:02:02]} 20. Qd2 {[%clk 0:01:09]}  Qc5 {[%clk 0:02:01]} 21. Nf3 {[%clk 0:00:58]}  Raf8 {[%clk 0:01:47]} 22. Nd4 {[%clk 0:00:53]}  Qa5 {[%clk 0:01:28]} 23. Nb3 {[%clk 0:00:50]}  Qa3+ {[%clk 0:01:23]} 24. Qb2 {[%clk 0:00:49]}  Qe7 {[%clk 0:01:22]} 25. Qd2 {[%clk 0:00:40]}  Bxg2 {[%clk 0:01:18]} 26. Re1 {[%clk 0:00:36]}  Qf7 {[%clk 0:01:08]} 27. Bc2 {[%clk 0:00:32]}  Re8 {[%clk 0:00:43]} 28. Rxe8+ {[%clk 0:00:29]}  Qxe8 {[%clk 0:00:42]} 29. Qd3 {[%clk 0:00:26]}  Bf3 {[%clk 0:00:33]} 30. Rf4 {[%clk 0:00:14]}  Rxf4 {[%clk 0:00:25]} 31. Bxf4 {[%clk 0:00:15]}  Qe6 {[%clk 0:00:23]} 32. Qxf3 {[%clk 0:00:14]}  Qxc4 {[%clk 0:00:22]} 33. Nd4 {[%clk 0:00:12]}  Nc5 {[%clk 0:00:20]} 34. Bd2 {[%clk 0:00:09]}  Qxa2 {[%clk 0:00:19]} 35. Qf5 {[%clk 0:00:07]}  Qa1+ {[%clk 0:00:15]} 36. Bb1 {[%clk 0:00:07]}  Qa3+ {[%clk 0:00:15]} 37. Kd1 {[%clk 0:00:07]}  Qa4+ {[%clk 0:00:14]} 38. Bc2 {[%clk 0:00:07]}  Qc4 {[%clk 0:00:14]} 39. Qh7+ {[%clk 0:00:07]}  Kf8 {[%clk 0:00:13]} 40. Qh8+ {[%clk 0:00:06]}  Kf7 {[%clk 0:00:13]} 41. Qh7 {[%clk 0:00:06]}  Qf1+ {[%clk 0:00:11]} 42. Be1 {[%clk 0:00:06]}  Qg2 {[%clk 0:00:10]} 43. f4 {[%clk 0:00:03]}  Qg4+ {[%clk 0:00:08]} 44. Kc1 {[%clk 0:00:03]}  Qf5 {[%clk 0:00:07]} 45. Qxf5+ {[%clk 0:00:03]}  Ke7 {[%clk 0:00:02]} 46. Qg6 {[%clk 0:00:04]}  d5 {[%clk 0:00:02]} 47. Nf5+ {[%clk 0:00:04]}  Kd7 {[%clk 0:00:02]} 48. Qxg7+ {[%clk 0:00:05]}  Kc6 {[%clk 0:00:02]} 49. Ne7+ {[%clk 0:00:06]}  Kb5 {[%clk 0:00:02]} 50. Nxd5 {[%clk 0:00:07]}  Kc4 {[%clk 0:00:02]} 51. Qd4+ {[%clk 0:00:07]}  Kb5 {[%clk 0:00:02]} 52. Qb4+ {[%clk 0:00:07]}  Kc6 {[%clk 0:00:00]} 53. Ne7+ {[%clk 0:00:08]} 1-0


[Site "https://www.chess.com"]